bitfinex/quotes_ETHUSD_20240711
["timestamp","ask_amount","ask_price","bid_price","bid_amount"]
[1720727013839,3.19939,3125.6,3124.8,3.78948838]
[1720727015173,3.19923,3125.8,3124.8,3.78948838]
[1720727015174,3.19923,3125.8,3124.9,3.2001]
[1720727015335,3.19923,3125.8,3125.0,0.55]
[1720727015542,3.19923,3125.8,3125.0,0.58913574]
[1720727015737,4.29372803,3125.8,3125.0,0.58913574]
[1720727016143,3.19939,3125.6,3125.0,0.58913574]
[1720727016372,3.19949,3125.5,3125.0,0.03913574]
[1720727017338,3.19933,3125.7,3125.0,0.03913574]
[1720727018073,3.19938,3125.6,3125.0,0.03913574]
[1720727018875,6.19898,3126.0,3125.2,3.19978]
[1720727019049,3.1989,3126.1,3125.3,3.01696291]
[1720727019783,3.19898,3126.0,3125.3,3.01696291]
[1720727020658,3.99345303,3126.0,3125.3,0.58896291]
[1720727020973,0.47457503,3125.9,3125.4,0.55]
[1720727021182,3.518878,3126.0,3125.3,0.03896291]
[1720727021183,3.19898,3126.0,3125.3,0.03896291]
[1720727021386,3.19898,3126.0,3125.5,0.0387804]
[1720727021557,3.19898,3126.0,3125.4,0.03884048]
[1720727021873,3.19898,3126.0,3125.5,0.03878337]
[1720727022075,3.19898,3126.0,3125.1,3.74982]
[1720727022278,3.19898,3126.0,3125.2,0.0389547]
[1720727023387,0.47457503,3126.3,3125.2,0.0389547]
[1720727023686,3.0,3126.3,3125.5,3.19948]
[1720727023842,3.0,3126.5,3125.6,0.58872627]
[1720727024043,0.77457503,3126.4,3125.6,0.58872627]
[1720727024368,2.74757503,3126.4,3125.6,0.58872627]
[1720727024558,3.0,3126.3,3125.6,0.58872627]
[1720727024759,0.47457503,3126.2,3125.6,0.58872627]
[1720727027078,3.0,3126.3,3125.6,0.58872627]
[1720727027282,3.47457503,3126.7,3125.6,0.58872627]
[1720727027451,0.59127783,3126.6,3125.6,0.58872627]
[1720727027649,0.47457503,3126.5,3125.6,0.58872627]
[1720727028559,2.273,3126.4,3125.6,0.58872627]
[1720727028912,2.87537503,3126.3,3125.6,0.58872627]
[1720727030369,2.87537503,3126.3,3125.6,0.03872627]
[1720727030570,3.8148375,3126.2,3125.6,0.03872627]
[1720727030775,4.28941253,3126.2,3125.6,0.03872627]
[1720727030979,3.372,3125.8,3125.6,0.03872627]
[1720727031174,5.7728,3125.6,3124.6,7.48]
[1720727031482,5.7728,3125.6,3124.7,0.03667295]
[1720727031483,6.24737503,3125.6,3124.7,0.03667295]
[1720727031670,3.8520375,3125.5,3124.3,7.48]
[1720727031876,3.8520375,3125.5,3124.8,0.03661581]
[1720727032087,3.8520375,3125.5,3124.3,7.48]
[1720727032301,3.8520375,3125.5,3124.4,0.03684584]
[1720727032475,3.8520375,3125.5,3124.4,0.58684584]
[1720727032679,0.67274125,3125.4,3124.4,0.58684584]
[1720727037108,0.67274125,3125.4,3124.4,3.78745584]
[1720727038497,0.67274125,3125.4,3124.4,0.58684584]
[1720727042534,0.67274125,3125.4,3124.4,0.03684584]
[1720727042535,1.14731628,3125.4,3124.4,0.03684584]
[1720727042834,2.3363,3125.2,3124.4,0.03684584]
[1720727042978,5.81087503,3125.2,3124.4,0.03684584]
[1720727043928,2.4324,3124.8,3124.4,0.03684584]
[1720727044094,2.273,3124.5,3124.4,0.03684584]
[1720727044299,2.74757503,3124.5,3123.7,7.48]
[1720727044601,2.74757503,3124.5,3123.8,0.03495305]
[1720727044602,3.2747575,3124.4,3123.8,0.03495305]
[1720727045415,2.409,3124.3,3123.8,0.03495305]
[1720727045717,2.409,3124.3,3123.6,0.00082729]
[1720727045923,3.2747575,3124.4,3123.7,0.03501022]
[1720727046425,0.2747575,3124.4,3123.7,0.03501022]
[1720727047820,0.2747575,3124.4,3123.8,2.4134]
[1720727048127,3.0,3124.8,3123.9,0.58489589]
[1720727048287,3.47457503,3124.8,3123.9,0.58489589]
[1720727049720,0.47457503,3124.7,3123.9,0.58489589]
[1720727049892,0.47457503,3124.7,3123.9,0.03489589]
[1720727050092,0.47457503,3124.7,3123.6,0.55082729]
[1720727050292,0.3474575,3124.6,3123.7,0.03501022]
[1720727050799,0.82203253,3124.6,3123.7,0.03501022]
[1720727056389,3.0,3124.8,3123.8,2.4889]
[1720727056588,5.273,3124.9,3123.9,0.55]
[1720727056818,5.74757503,3124.9,3123.9,0.58489589]
[1720727057298,0.47457503,3124.8,3123.9,0.58489589]
[1720727057498,3.47457503,3124.8,3123.9,0.58489589]
[1720727057716,0.5747575,3124.7,3123.9,0.58489589]
[1720727057920,3.0,3124.8,3123.9,0.58489589]
[1720727058193,0.15935626,3125.0,3123.9,0.58489589]
[1720727058426,0.47457503,3124.8,3123.9,0.58489589]
[1720727062121,3.0,3125.1,3123.9,0.58489589]
[1720727062337,3.16156789,3125.2,3123.9,0.58489589]
[1720727062655,3.82767535,3125.2,3124.0,2.4034]
[1720727062810,3.82767535,3125.2,3124.1,0.55]
[1720727063010,3.82767535,3125.2,3124.1,0.58487761]
[1720727063478,2.74757503,3125.3,3124.2,2.4552]
[1720727063758,0.47457503,3125.9,3124.6,2.4189]
[1720727063970,0.47457503,3125.9,3124.7,0.55]
[1720727064178,0.47457503,3125.9,3124.7,0.58453474]
[1720727064325,0.2902175,3125.8,3124.7,0.58453474]
[1720727064526,0.47457503,3125.7,3124.7,0.58453474]
[1720727065777,2.74757503,3125.7,3124.7,0.58453474]
[1720727065938,2.273,3125.3,3124.7,0.03453474]
[1720727066137,1.03907503,3125.2,3124.0,2.4928]
[1720727066384,4.03907503,3125.2,3124.0,2.4928]
[1720727066558,4.03907503,3125.2,3124.1,0.03485249]
[1720727066774,7.41107503,3125.2,3124.1,0.03485249]
[1720727067095,2.273,3124.9,3124.1,0.03485249]
[1720727067269,0.47457503,3124.8,3124.1,0.03485249]
[1720727067435,3.47457503,3124.8,3123.9,7.48]
[1720727067637,3.47457503,3124.8,3124.2,0.03475248]
[1720727068032,3.47457503,3124.8,3123.9,7.48]
[1720727068293,3.47457503,3124.8,3124.3,0.03475887]
[1720727068294,5.645,3124.5,3124.3,0.03475887]
[1720727068430,5.645,3124.5,3123.9,7.48]
[1720727068431,6.372,3124.4,3123.9,7.48]
[1720727068636,6.84657503,3124.4,3123.9,7.48]
[1720727068970,6.84657503,3124.4,3124.0,0.03497023]
[1720727071938,0.47457503,3124.3,3123.5,0.025]
[1720727072139,0.6846575,3124.2,3123.7,0.03412042]
[1720727072783,3.0,3124.4,3123.7,0.03412042]
[1720727072936,2.273,3124.5,3123.7,0.03412042]
[1720727073455,2.74757503,3124.5,3123.7,0.03412042]
[1720727073670,3.0,3124.4,3123.7,0.03412042]
[1720727073978,3.8747575,3124.4,3123.7,0.03412042]
[1720727081388,2.273,3124.1,3122.4,9.7404]
[1720727081567,2.273,3123.4,3122.4,2.2604]
[1720727081973,2.76507503,3123.4,3122.4,2.2604]
[1720727082172,3.0,3123.3,3122.4,2.2604]
[1720727082358,3.41412293,3123.3,3122.4,2.2604]
[1720727083575,3.41412293,3123.3,3122.5,0.55]
[1720727084291,3.41412293,3123.3,3122.4,2.2604]
[1720727085463,3.41412293,3123.3,3122.1,0.00082224]
[1720727086301,3.41412293,3123.3,3122.1,0.55082224]
[1720727086600,0.56871229,3123.2,3122.1,0.55082224]
[1720727090907,3.0,3123.3,3122.1,0.55082224]
[1720727091107,2.273,3123.4,3122.1,0.55082224]
[1720727098074,3.0,3123.5,3122.3,2.4364]
[1720727098278,2.273,3123.8,3122.4,0.55]
[1720727098473,0.2273,3123.7,3122.5,2.4364]
[1720727098674,3.2273,3123.7,3122.6,0.55]
[1720727100301,3.2273,3123.7,3122.7,2.4364]
[1720727100505,3.0,3123.6,3122.8,0.55]
[1720727100706,0.2273,3123.7,3122.8,0.55]
[1720727100906,0.15782718,3123.9,3122.8,0.55]
[1720727101224,0.43532503,3123.8,3122.8,0.55]
[1720727103031,3.0,3124.0,3122.9,2.484]
[1720727103253,0.45557503,3124.2,3123.0,0.55]
[1720727103525,0.45557503,3124.2,3123.1,2.484]
[1720727103735,0.45557503,3124.2,3123.2,0.55]
[1720727103887,2.273,3124.8,3123.2,0.55]
[1720727104086,0.45557503,3124.5,3123.2,0.55]
[1720727104319,0.45557503,3124.5,3123.3,2.3158]
[1720727104546,0.45557503,3124.5,3123.4,0.55]
[1720727105628,0.45557503,3124.5,3123.5,2.3297]
[1720727105836,0.9684075,3125.1,3123.7,2.2597]
[1720727106001,0.9684075,3125.1,3123.6,3.75134]
[1720727106002,0.45557503,3125.0,3123.8,0.55]
[1720727106328,0.45557503,3125.0,3123.9,2.2597]
[1720727106535,0.45557503,3125.0,3124.0,0.55]
[1720727108693,0.3455575,3124.9,3124.0,0.55]
[1720727109143,0.80113253,3124.9,3124.0,0.55]
[1720727109328,0.45557503,3124.8,3124.0,0.55]
[1720727111074,0.3455575,3124.9,3124.0,0.55]
[1720727112463,0.80113253,3124.9,3124.0,0.55]
[1720727113242,0.45557503,3124.8,3124.0,0.55]
[1720727115583,0.3455575,3124.9,3124.1,2.4134]
[1720727116091,3.0,3125.1,3124.1,2.4134]
[1720727116294,3.25049096,3125.7,3124.3,2.309]
[1720727116523,0.45557503,3125.7,3124.4,2.859]
[1720727116713,0.45557503,3125.9,3124.5,2.309]
[1720727116899,0.2728575,3125.8,3124.7,2.309]
[1720727117353,2.273,3126.4,3124.9,2.309]
[1720727117562,0.45557503,3126.2,3125.0,0.55]
[1720727118168,0.45557503,3126.2,3125.1,2.3869]
[1720727118356,0.45557503,3126.2,3125.2,0.55]
[1720727120439,0.45557503,3126.2,3125.3,2.3869]
[1720727120607,0.33492486,3126.9,3125.3,2.3869]
[1720727120803,0.33492486,3126.9,3125.7,2.3869]
[1720727121010,2.273,3127.4,3125.8,0.55]
[1720727121213,0.53275703,3127.3,3125.8,0.55]
[1720727121533,0.53275703,3127.3,3125.8,3.74917]
[1720727121696,0.9066654,3127.3,3125.8,3.74917]
[1720727122418,3.74590837,3127.2,3125.8,0.55]
[1720727122593,2.273,3127.0,3125.8,0.55]
[1720727122928,0.5273,3126.9,3125.8,0.55]
[1720727123136,3.5273,3126.9,3125.8,0.55]
[1720727129829,3.5273,3126.9,3125.7,2.3869]
[1720727129830,2.273,3126.6,3125.7,2.3869]
[1720727130041,5.645,3126.6,3125.7,2.3869]
[1720727130198,3.8645,3126.5,3125.7,2.3869]
[1720727133618,3.0,3126.8,3125.7,2.3869]
[1720727133958,5.645,3126.6,3125.4,7.48]
[1720727134249,5.645,3126.6,3125.2,2.3346]
[1720727134250,2.273,3126.2,3125.2,2.3346]
[1720727134525,0.2273,3126.1,3125.2,2.3346]
[1720727134669,3.2273,3126.1,3125.2,2.3346]
[1720727142213,3.2273,3126.1,3125.1,7.48]
[1720727142214,9.0908,3126.1,3125.1,7.48]
[1720727142515,5.645,3125.8,3125.1,7.48]
[1720727142736,6.01890837,3125.8,3125.1,7.48]
[1720727142887,3.60189084,3125.7,3125.1,7.48]
[1720727144377,3.93704426,3125.7,3125.1,7.48]
[1720727145026,2.273,3125.2,3125.1,7.48]
[1720727145335,5.645,3125.2,3124.6,7.48]
[1720727145550,3.8645,3125.1,3124.6,7.48]
[1720727147592,3.8645,3125.1,3124.6,9.8515]
[1720727147798,3.0,3125.5,3124.6,9.8515]
[1720727148028,5.273,3125.6,3124.6,9.8515]
[1720727149008,5.273,3125.6,3124.6,2.3715]
[1720727149548,1.09988264,3125.7,3124.7,0.55]
[1720727149745,2.273,3126.0,3124.7,0.55]
[1720727149897,0.37390837,3125.9,3124.7,0.55]
[1720727150342,0.70902208,3125.9,3124.7,0.55]
[1720727151344,3.70902208,3125.9,3124.7,0.55]
[1720727152135,3.0,3125.9,3124.7,0.55]
[1720727152434,2.43108326,3126.0,3124.7,0.55]
[1720727152592,0.54310833,3125.9,3124.7,0.55]
[1720727153010,3.54310833,3125.9,3124.7,0.55]
[1720727153211,3.87820434,3125.9,3124.8,2.2616]
[1720727153411,3.87820434,3125.9,3124.9,0.55]
[1720727153668,3.0,3125.9,3124.9,0.55]
[1720727153848,2.273,3126.4,3125.0,2.2616]
[1720727154011,2.273,3126.4,3125.1,0.55]
[1720727154952,2.43184125,3126.4,3125.1,0.55]
[1720727155330,2.43184125,3126.4,3125.0,2.2616]
[1720727155331,4.08097295,3126.3,3125.0,2.2616]
[1720727155521,3.0,3126.2,3125.0,2.2616]
[1720727155722,3.37390837,3126.2,3125.0,2.2616]
[1720727159346,3.0,3126.2,3125.1,0.55]
[1720727159523,3.54318413,3126.3,3125.1,0.55]
[1720727159878,0.58161841,3126.2,3125.1,0.55]
[1720727160936,3.0,3126.3,3125.2,2.4617]
[1720727161258,2.273,3126.4,3125.2,2.4617]
[1720727161460,0.37390837,3126.3,3125.3,0.55]
[1720727161757,0.70897453,3126.3,3125.3,0.55]
[1720727162077,3.70897453,3126.3,3125.3,0.55]
[1720727162372,0.97210582,3126.2,3125.2,2.4617]
[1720727163129,0.59819745,3126.2,3125.2,2.4617]
[1720727163938,3.33506616,3126.3,3125.2,2.4617]
[1720727164564,0.37390837,3126.2,3125.2,2.4617]
[1720727166874,3.33506616,3126.3,3125.2,2.4617]
[1720727169212,3.33506616,3126.3,3125.3,3.19968]
[1720727169213,0.33506616,3126.3,3125.3,3.19968]
[1720727169499,2.64690837,3126.8,3125.5,2.367]
[1720727169646,2.64690837,3126.8,3125.7,2.367]
[1720727169647,2.91159921,3126.8,3125.7,2.367]
[1720727170182,2.91159921,3126.8,3125.8,0.55]
[1720727170879,0.16022509,3126.9,3125.9,2.4746]
[1720727171190,2.273,3127.2,3126.1,2.4746]
[1720727171362,2.64690837,3127.2,3126.1,2.4746]
[1720727171692,0.37390837,3127.1,3126.1,2.4746]
[1720727172125,3.37390837,3127.1,3126.1,2.4746]
[1720727172411,3.37390837,3127.1,3126.2,0.55]
[1720727172585,3.95515505,3127.1,3126.2,0.55]
[1720727173300,3.95515505,3127.1,3126.1,2.4746]
[1720727173301,7.32715505,3127.1,3126.1,2.4746]
[1720727173505,7.66213497,3127.1,3126.1,2.4746]
[1720727175184,9.92173497,3127.1,3125.9,7.48]
[1720727175390,2.273,3126.8,3125.9,7.48]
[1720727175912,2.273,3126.8,3125.7,2.4354]
[1720727176107,2.64690837,3126.8,3125.8,0.55]
[1720727176276,3.0,3126.7,3125.8,0.55]
[1720727178534,6.74590837,3126.7,3125.2,7.48]
[1720727178693,6.74590837,3126.7,3125.2,2.4497]
[1720727178694,3.372,3126.5,3125.2,2.4497]
[1720727179005,5.273,3126.4,3125.2,2.4497]
[1720727180360,3.372,3126.2,3124.9,9.9297]
[1720727180505,5.645,3126.0,3124.9,7.48]
[1720727180877,3.372,3125.8,3124.5,9.9297]
[1720727181003,3.0,3125.7,3124.5,9.9297]
[1720727182009,3.0,3125.8,3124.5,9.9297]
[1720727182237,3.8648,3125.8,3124.5,9.9297]
[1720727182663,4.2398,3125.8,3124.5,9.9297]
[1720727182844,3.0,3125.7,3124.5,9.9297]
[1720727183839,3.33512155,3125.7,3124.5,9.9297]
[1720727184729,3.73319658,3125.7,3124.5,2.4497]
[1720727184935,0.79729966,3125.6,3124.5,2.4497]
[1720727185942,0.73319658,3125.7,3124.5,2.4497]
[1720727186740,0.39807503,3125.6,3124.5,2.4497]
[1720727188351,2.3986,3125.5,3124.5,2.4497]
[1720727188567,5.3986,3125.5,3124.5,2.4497]
[1720727188764,0.39807503,3125.4,3124.5,2.4497]
[1720727188917,0.5796675,3125.3,3124.5,2.4497]
[1720727189443,0.5796675,3125.3,3124.2,7.48]
[1720727189444,5.648,3125.2,3124.2,7.48]
[1720727189666,6.04607503,3125.2,3124.2,7.48]
[1720727189962,3.0,3125.1,3124.2,7.48]
[1720727190250,0.9046075,3125.0,3124.2,7.48]
[1720727191441,1.30268253,3125.0,3124.2,7.48]
[1720727192722,0.9046075,3125.0,3124.2,7.48]
[1720727193528,0.9046075,3125.0,3123.8,7.48]
[1720727193722,0.9046075,3125.0,3123.9,0.55]
[1720727193991,0.9046075,3125.0,3123.8,0.55]
[1720727193992,0.39046075,3124.9,3123.8,0.55]
[1720727195285,3.0,3125.1,3123.8,0.55]
[1720727195460,5.273,3125.2,3123.9,2.3347]
[1720727195662,2.273,3125.6,3124.1,2.4297]
[1720727195959,3.39807503,3125.4,3124.2,0.55]
[1720727196163,4.20504253,3125.4,3124.2,0.55]
[1720727197887,4.36357378,3125.4,3124.2,0.55]
[1720727201782,4.36357378,3125.4,3124.1,2.4297]
[1720727203514,4.36357378,3125.4,3124.2,0.55]
[1720727203677,0.55660628,3125.4,3124.2,0.55]
[1720727203878,0.55660628,3125.4,3124.0,2.9455]
[1720727204111,0.15853125,3125.4,3124.1,5.66041464]
[1720727204308,3.33515395,3125.5,3124.3,2.3955]
[1720727204498,3.73322898,3125.5,3124.4,0.55]
[1720727204815,0.99869793,3125.4,3124.4,0.55]
[1720727205040,0.39807503,3125.4,3124.4,0.55]
[1720727207306,3.49836223,3125.5,3124.4,0.55]
[1720727208485,0.39807503,3125.4,3124.4,0.55]
[1720727210539,0.39807503,3125.4,3124.3,2.3955]
[1720727212625,0.39807503,3125.4,3124.4,0.55]
[1720727212822,1.01501876,3125.4,3124.4,0.55]
[1720727219654,2.4814,3125.3,3124.4,0.55]
[1720727219830,5.4814,3125.3,3124.4,0.55]
[1720727220024,2.273,3125.2,3123.9,9.9436]
[1720727220237,0.8152475,3125.1,3123.9,9.9436]
[1720727220533,0.39807503,3125.0,3123.9,9.9436]
[1720727222033,0.39807503,3125.0,3124.0,0.55]
[1720727222228,0.39807503,3125.0,3123.9,9.9436]
[1720727223426,0.39807503,3125.0,3123.9,2.4636]
[1720727223626,0.45485062,3124.9,3123.9,2.4636]
[1720727226255,4.1504312,3125.1,3124.0,0.55]
[1720727226760,0.8152475,3125.1,3124.0,0.55]
[1720727226958,1.21332253,3125.1,3124.0,0.55]
[1720727227159,0.39807503,3125.0,3124.0,0.55]
[1720727231070,0.16360757,3125.1,3124.0,0.55]
[1720727231262,5.273,3125.2,3124.0,0.55]
[1720727231467,6.54801691,3125.2,3124.0,0.55]
[1720727231940,6.7068201,3125.2,3124.0,0.55]
[1720727232550,0.39807503,3125.1,3124.0,0.55]
[1720727234953,0.39807503,3125.1,3124.1,2.3713]
[1720727235156,0.39807503,3125.4,3124.2,0.55]
[1720727236784,0.39807503,3125.4,3124.2,3.75081]
[1720727238424,2.2656,3125.3,3124.1,2.3713]
[1720727238559,0.39807503,3125.2,3124.1,2.3713]
[1720727238764,3.39807503,3125.2,3124.1,2.3713]
[1720727239894,3.39807503,3125.2,3124.2,0.55]
[1720727241124,0.33515948,3125.1,3124.2,0.55]
[1720727241294,0.37332345,3125.0,3124.2,0.55]
[1720727241495,0.33515948,3125.1,3124.2,0.55]
[1720727242544,0.33515948,3125.1,3123.6,9.8488]
[1720727242545,0.73323451,3125.1,3123.6,9.8488]
[1720727242688,0.39807503,3125.0,3123.6,9.8488]
[1720727242896,2.3755,3124.9,3123.7,0.55]
[1720727243147,5.3755,3124.9,3123.7,0.55]
[1720727244442,3.0,3124.9,3123.8,2.3387]
[1720727244634,5.3829,3125.3,3123.9,0.55]
[1720727244789,5.3829,3125.3,3124.0,2.3387]
[1720727244990,3.0,3125.2,3124.1,3.75089]
[1720727245242,0.33514177,3125.3,3124.1,3.75089]
[1720727245400,0.77139671,3125.3,3124.1,0.55]
[1720727245594,0.39807503,3125.2,3124.1,0.55]
[1720727245798,2.3912,3125.1,3124.1,0.55]
[1720727245989,5.3912,3125.1,3124.1,0.55]
[1720727246723,3.0,3125.1,3124.1,0.55]
[1720727246922,0.39807503,3125.2,3124.1,0.55]
[1720727249244,3.0,3125.3,3124.2,5.5578]
[1720727249592,3.36610856,3126.0,3124.6,3.20039]
[1720727249837,0.39807503,3125.9,3124.6,3.20039]
[1720727250013,0.39807503,3125.9,3124.7,0.55]
[1720727250109,0.39807503,3125.9,3124.8,2.357]
[1720727250440,0.39807503,3125.9,3124.9,0.55]
[1720727250645,0.68445253,3125.9,3124.9,0.55]
[1720727250944,0.68445253,3125.9,3124.4,2.357]
[1720727251108,0.68445253,3125.9,3124.5,0.55]
[1720727251442,3.68445253,3125.9,3124.5,0.55]
[1720727251638,3.0,3125.8,3124.5,0.55]
[1720727251806,2.4657,3125.6,3124.5,0.55]
[1720727252003,0.39807503,3125.5,3124.5,0.55]
[1720727252203,3.39807503,3125.5,3124.5,0.55]
[1720727252427,3.0,3125.5,3124.5,0.55]
[1720727252619,2.4657,3125.6,3124.5,0.55]
[1720727252918,0.24657,3125.5,3124.5,0.55]
[1720727253211,3.24657,3125.5,3124.5,0.55]
[1720727253551,0.39807503,3125.4,3124.5,0.55]
[1720727255312,0.39807503,3125.4,3124.4,2.357]
[1720727255639,4.528,3125.3,3124.0,7.48]
[1720727255812,0.39807503,3125.2,3123.9,2.4662]
[1720727256013,3.39807503,3125.2,3123.9,2.4662]
[1720727256326,2.25,3125.1,3123.6,9.9116]
[1720727256539,5.25,3125.1,3123.6,9.9116]
[1720727256747,0.5648075,3125.0,3123.6,9.9116]
[1720727256942,3.5648075,3125.0,3123.6,9.9116]
[1720727257239,3.5648075,3125.0,3123.7,0.55]
[1720727258364,3.96288253,3125.0,3123.7,0.55]
[1720727258653,0.39807503,3124.9,3123.7,0.55]
[1720727258810,1.01936328,3124.9,3123.7,0.55]
[1720727261518,1.35456281,3124.9,3123.7,0.55]
[1720727262245,1.01936328,3124.9,3123.7,0.55]
[1720727263123,1.35455989,3124.9,3123.7,0.55]
[1720727264262,0.39807503,3124.9,3123.7,0.55]
[1720727264433,0.73327074,3124.9,3123.7,0.55]
[1720727264623,3.20056,3124.5,3123.7,3.75129]
[1720727264829,6.20003,3125.0,3123.7,3.75129]
[1720727265051,3.20067,3124.4,3123.7,3.75129]
[1720727265559,3.20067,3124.4,3123.3,2.273]
[1720727265560,3.20129,3123.8,3123.3,9.9606]
[1720727265784,3.20129,3123.8,3123.3,2.4806]
[1720727266833,3.20134,3123.7,3123.3,2.4806]
[1720727267042,3.20134,3123.7,3123.4,0.55]
[1720727267378,3.20134,3123.7,3123.1,0.55]
[1720727268170,3.20129,3123.8,3123.1,0.55]
[1720727273286,5.4863,3124.4,3123.1,0.55]
[1720727273500,3.0,3124.3,3123.1,0.55]
[1720727273775,3.44892552,3124.4,3123.1,0.55]
[1720727274068,3.0,3124.3,3123.1,0.55]
[1720727274662,3.39807503,3124.3,3123.1,0.55]
[1720727274870,0.39807503,3124.2,3123.1,0.55]
[1720727275048,0.3398075,3124.1,3123.1,0.55]
[1720727276089,2.3564,3123.9,3123.1,0.55]
[1720727276252,5.3564,3123.9,3123.0,7.48]
[1720727276983,5.3564,3123.9,3122.7,9.7782]
[1720727277568,5.3564,3123.9,3122.8,0.55]
[1720727277768,0.5754475,3123.8,3122.8,0.55]
[1720727277948,3.5754475,3123.8,3122.7,7.48]
[1720727278308,2.3849,3123.6,3122.7,7.48]
[1720727278450,2.273,3123.4,3122.1,2.48182224]
[1720727278814,6.15797503,3123.3,3122.1,0.00082224]
[1720727279096,0.8430975,3123.2,3122.1,0.00082224]
[1720727279301,4.24117253,3123.2,3122.1,0.00082224]
[1720727281077,3.20286,3122.2,3122.1,0.00082224]
[1720727281830,6.40572,3122.2,3122.1,0.00082224]
[1720727282008,3.0,3122.7,3122.1,0.00082224]
[1720727282311,3.20286,3122.2,3122.1,0.00082224]
[1720727283584,3.20277,3122.3,3122.1,0.00082224]
[1720727284010,3.20286,3122.2,3122.1,0.00082224]
[1720727284397,3.20268,3122.4,3122.1,0.00082224]
[1720727285510,3.20276,3122.3,3122.1,0.00082224]
[1720727286767,3.20286,3122.2,3122.1,0.00082224]
[1720727288305,6.4055,3122.4,3122.1,0.00082224]
[1720727288507,3.20278,3122.3,3122.1,0.00082224]
[1720727289206,3.20286,3122.2,3122.1,0.00082224]
[1720727290512,3.20278,3122.3,3122.1,0.00082224]
[1720727290717,3.20286,3122.2,3122.1,0.00082224]
[1720727291421,3.843424,3122.2,3122.1,0.00082224]
[1720727292186,3.20286,3122.2,3122.1,0.00082224]
[1720727298904,6.40572,3122.2,3122.1,0.00082224]
[1720727301217,3.20286,3122.2,3122.1,0.00082224]
[1720727303307,6.40572,3122.2,3122.1,0.00082224]
[1720727304504,3.20286,3122.2,3122.1,0.00082224]
[1720727304899,3.20279,3122.3,3122.1,0.00082224]
[1720727305239,6.40563,3122.3,3122.1,0.00082224]
[1720727305448,3.20265,3122.5,3122.1,0.00082224]
[1720727305651,6.20269,3122.4,3122.1,0.00082224]
[1720727307728,3.20277,3122.3,3122.1,0.00082224]
[1720727310432,6.20226,3122.8,3122.1,2.29832224]
[1720727310622,3.20238,3122.7,3122.2,0.55]
[1720727310801,3.0,3122.6,3122.2,0.55]
[1720727310999,3.60016503,3123.0,3122.2,0.55]
[1720727311196,0.15948178,3123.4,3122.2,0.55]
[1720727311197,0.948,3123.1,3122.2,0.55]
[1720727311401,3.2021,3123.0,3122.3,0.0640469]
[1720727311747,3.20236,3122.7,3122.4,0.55]
[1720727312037,3.20236,3122.7,3122.2,0.55]
[1720727312539,3.20267,3122.4,3122.2,0.55]
[1720727312837,3.20256,3122.6,3122.2,0.55]
[1720727313140,6.4051,3122.6,3122.2,0.55]
[1720727313431,3.20258,3122.5,3122.2,0.55]
[1720727313629,3.20272,3122.4,3122.2,0.55]
[1720727314409,3.20276,3122.3,3122.2,0.55]
[1720727314662,3.20286,3122.2,3122.1,0.00082224]
[1720727314812,6.40572,3122.2,3122.1,0.00082224]
[1720727317704,3.20286,3122.2,3122.1,0.00082224]
[1720727318138,6.40572,3122.2,3122.1,0.00082224]
[1720727320149,3.20286,3122.2,3122.1,0.00082224]
[1720727321309,6.40572,3122.2,3122.1,0.00082224]
[1720727321750,3.20286,3122.2,3122.1,0.00082224]
[1720727322046,6.40572,3122.2,3122.1,0.00082224]
[1720727324066,7.046292,3122.2,3122.1,0.00082224]
[1720727326031,15.560752,3122.2,3122.1,0.00082224]
[1720727327955,10.046292,3122.2,3122.1,0.00082224]
[1720727328127,9.40572,3122.2,3122.1,0.00082224]
[1720727330525,3.20271,3122.4,3122.1,0.00082224]
[1720727330736,3.20286,3122.2,3122.1,0.00082224]
[1720727331624,3.20271,3122.4,3122.1,0.00082224]
[1720727331952,3.0,3122.7,3122.2,2.2961]
[1720727332158,3.20261,3122.5,3122.3,0.55]
[1720727332458,3.20266,3122.4,3122.3,0.55]
[1720727335171,3.20261,3122.5,3122.3,0.55]
[1720727336344,3.2024,3122.7,3122.3,0.55]
[1720727337786,3.20225,3122.8,3122.3,0.55]
[1720727339960,6.20214,3123.0,3122.3,0.55]
[1720727340271,3.20197,3123.1,3122.4,2.476]
[1720727340468,3.20197,3123.1,3122.5,0.55]
[1720727340676,3.20218,3122.9,3122.5,0.55]
[1720727340907,2.4596,3123.0,3122.1,0.00082224]
[1720727341047,3.2024,3122.7,3122.1,0.00082224]
[1720727341395,0.947,3122.8,3122.1,0.00082224]
[1720727341554,6.40443,3122.9,3122.1,0.00082224]
[1720727341752,3.20227,3122.8,3122.1,0.00082224]
[1720727342154,3.20255,3122.6,3122.1,0.00082224]
[1720727342454,4.1493,3122.8,3122.1,0.55082224]
[1720727342655,3.20243,3122.7,3122.1,0.55082224]
[1720727343386,3.2025,3122.6,3122.1,0.55082224]
[1720727343573,3.20263,3122.5,3122.1,0.55082224]
[1720727344587,3.20267,3122.4,3122.1,0.55082224]
[1720727344986,3.20286,3122.2,3122.1,0.00082224]
[1720727346058,3.20277,3122.3,3122.1,0.00082224]
[1720727347159,3.20286,3122.2,3122.1,0.00082224]
[1720727347363,3.20262,3122.5,3122.1,0.00082224]
[1720727347564,3.0,3122.4,3122.2,2.4212]
[1720727347764,3.0,3122.4,3122.3,0.55]
[1720727348825,3.20241,3122.7,3122.3,0.55]
[1720727349705,6.40441,3122.9,3122.3,0.55]
[1720727349933,3.20233,3122.8,3122.3,0.55]
[1720727350438,3.20241,3122.7,3122.3,0.55]
[1720727351742,3.20265,3122.5,3122.3,0.55]